bitfinex/quotes_SOLUSD_20250722
["timestamp","ask_amount","ask_price","bid_price","bid_amount"]
[1753203669659,49.44014554,203.38,203.25,0.67]
[1753203669660,26.0,203.3,203.25,0.67]
[1753203669866,40.21927226,203.29,203.25,0.67]
[1753203670058,40.21927226,203.29,203.26,0.67]
[1753203670448,35.3,203.28,203.26,0.67]
[1753203671260,35.72296909,203.33,203.27,0.67]
[1753203671462,26.0,203.29,203.27,10.39296909]
[1753203671646,35.32,203.28,203.26,9.72296909]
[1753203671850,35.32,203.28,203.26,14.64263744]
[1753203672357,35.32,203.28,203.27,10.39296909]
[1753203673069,9.72296909,203.37,203.27,10.39296909]
[1753203673239,9.72296909,203.37,203.26,4.91966835]
[1753203673240,35.32,203.36,203.31,9.72296909]
[1753203673444,26.0,203.35,203.31,0.67]
[1753203673644,35.32,203.34,203.32,0.67]
[1753203673954,40.23800393,203.34,203.29,0.67]
[1753203674144,35.72296909,203.31,203.28,88.6]
[1753203674347,35.32,203.3,203.29,0.67]
[1753203674746,35.32,203.3,203.26,89.27]
[1753203674953,35.32,203.3,203.27,0.67]
[1753203675154,35.32,203.3,203.24,10.49296909]
[1753203675155,45.04296909,203.3,203.24,10.49296909]
[1753203675364,45.04296909,203.3,203.24,99.09296909]
[1753203675764,45.04296909,203.3,203.24,10.49296909]
[1753203675956,26.0,203.27,203.24,0.77]
[1753203676264,35.32,203.26,203.24,10.49296909]
[1753203676566,35.32,203.26,203.25,10.39296909]
[1753203676757,35.32,203.26,203.25,0.67]
[1753203677470,35.32,203.26,203.25,10.39296909]
[1753203677763,35.32,203.27,203.25,10.39296909]
[1753203677976,35.32,203.27,203.26,10.38296909]
[1753203678152,35.32,203.27,203.26,98.98296909]
[1753203678350,35.32,203.27,203.26,103.90277623]
[1753203678554,35.32,203.29,203.26,98.98296909]
[1753203678773,35.32,203.29,203.27,0.66]
[1753203679346,35.32,203.29,203.28,0.66]
[1753203679543,35.32,203.29,203.26,88.6]
[1753203679744,45.04296909,203.29,203.26,88.6]
[1753203680159,35.72296909,203.27,203.24,0.1]
[1753203680470,35.32,203.26,203.24,0.1]
[1753203680856,35.32,203.26,203.25,0.66]
[1753203681258,35.32,203.26,203.25,10.38296909]
[1753203681658,35.32,203.28,203.25,10.38296909]
[1753203681870,6.0572,203.38,203.27,9.72296909]
[1753203682176,49.96011517,203.37,203.31,9.72296909]
[1753203682471,9.72296909,203.36,203.31,0.66]
[1753203682673,9.72296909,203.35,203.31,0.66]
[1753203682978,9.72296909,203.33,203.28,0.66]
[1753203683553,9.72296909,203.32,203.26,9.72296909]
[1753203683782,35.32,203.31,203.26,10.38296909]
[1753203683970,35.32,203.31,203.27,0.66]
[1753203684162,40.23865936,203.31,203.27,0.66]
[1753203684648,49.96162845,203.31,203.27,0.66]
[1753203684851,35.72296909,203.33,203.28,0.66]
[1753203685056,35.32,203.32,203.29,0.66]
[1753203685369,35.32,203.31,203.3,0.66]
[1753203685578,35.32,203.31,203.3,10.38296909]
[1753203685950,26.0,203.35,203.3,10.38296909]
[1753203686153,26.0,203.35,203.25,135.38231018]
[1753203686154,35.32,203.34,203.33,9.72296909]
[1753203686371,35.32,203.34,203.33,10.38296909]
[1753203686681,35.32,203.36,203.33,10.38296909]
[1753203686895,35.32,203.36,203.34,10.38296909]
[1753203687283,35.32,203.36,203.35,10.38296909]
[1753203687793,35.32,203.36,203.35,0.66]
[1753203688289,35.32,203.36,203.3,6.1259]
[1753203688290,26.0,203.33,203.26,0.66]
[1753203688582,35.32,203.32,203.28,9.72296909]
[1753203688790,35.32,203.32,203.3,9.72296909]
[1753203688953,35.32,203.32,203.31,0.66]
[1753203689578,35.32,203.32,203.31,10.38296909]
[1753203689788,35.32,203.32,203.31,0.66]
[1753203690354,40.23852048,203.32,203.28,0.66]
[1753203690554,49.96148957,203.32,203.28,88.6]
[1753203690777,9.72296909,203.3,203.25,0.66]
[1753203690978,71.04296909,203.29,203.25,0.03]
[1753203691289,35.32,203.36,203.3,0.14216157]
[1753203691581,35.32,203.36,203.35,9.72296909]
[1753203691792,35.32,203.36,203.35,10.38296909]
[1753203692088,35.32,203.36,203.35,0.66]
[1753203693065,35.32,203.36,203.35,10.38296909]
[1753203693267,35.32,203.36,203.34,9.72296909]
[1753203693455,40.23740702,203.36,203.32,0.66]
[1753203693655,40.23740702,203.36,203.33,9.72296909]
[1753203693854,40.23740702,203.36,203.33,10.38296909]
[1753203694977,0.06,203.37,203.32,9.72296909]
[1753203695184,0.06,203.37,203.35,9.72296909]
[1753203695185,35.32,203.36,203.35,9.72296909]
[1753203695384,35.32,203.36,203.35,10.38296909]
[1753203696658,35.32,203.36,203.29,0.66]
[1753203696659,45.71296909,203.36,203.29,0.66]
[1753203696963,9.72296909,203.35,203.28,9.72296909]
[1753203697966,26.0,203.32,203.28,9.72296909]
[1753203698172,35.3,203.31,203.27,10.38296909]
[1753203698373,10.39296909,203.3,203.25,0.03]
[1753203698571,4.91908111,203.29,203.25,0.03]
[1753203698798,35.3,203.28,203.25,0.03]
[1753203699097,35.3,203.28,203.25,0.69]
[1753203699692,35.3,203.28,203.25,0.03]
[1753203699991,35.3,203.28,203.25,9.75296909]
[1753203700159,35.3,203.28,203.26,0.66]
[1753203701187,35.3,203.28,203.25,0.03]
[1753203701376,35.3,203.28,203.25,9.75296909]
[1753203701578,35.3,203.28,203.25,10.41296909]
[1753203702389,40.21933967,203.28,203.25,0.69]
[1753203702767,9.72296909,203.27,203.25,0.03]
[1753203702984,40.64277623,203.26,203.25,0.03]
[1753203703193,41.31277623,203.26,203.25,0.03]
[1753203704395,76.61277623,203.26,203.25,0.03]
[1753203705561,66.23980714,203.26,203.25,0.03]
[1753203705758,61.32,203.26,203.25,0.03]
[1753203706287,40.90980714,203.26,203.25,0.03]
[1753203706470,40.23980714,203.26,203.25,0.03]
[1753203706673,35.32,203.26,203.25,0.03]
[1753203706873,4.91787154,203.34,203.25,99.01296909]
[1753203707066,35.62,203.33,203.31,9.72296909]
[1753203707271,0.06,203.37,203.32,10.38296909]
[1753203707471,0.06,203.37,203.36,9.72296909]
[1753203707666,0.06,203.37,203.36,115.24981463]
[1753203707882,0.06,203.46,203.36,56.83981463]
[1753203708084,0.06,203.46,203.45,9.72296909]
[1753203708589,0.06,203.46,203.45,10.42296909]
[1753203708900,6.4311,203.58,203.46,16.78468397]
[1753203709068,35.7,203.57,203.5,5.05616648]
[1753203709263,35.7,203.57,203.56,9.72296909]
[1753203709497,0.2,203.58,203.56,10.42296909]
[1753203709697,0.2,203.58,203.57,10.42296909]
[1753203710303,0.2,203.58,203.57,10.9142006]
[1753203710470,0.2,203.58,203.57,10.42296909]
[1753203711077,0.2,203.58,203.57,32.2621298]
[1753203711533,0.2,203.58,203.57,27.34981463]
[1753203711797,0.2,203.58,203.57,0.7]
[1753203711996,0.2,203.58,203.57,10.42296909]
[1753203712688,0.2,203.58,203.57,15.96867734]
[1753203713297,0.06,203.62,203.61,42.78468397]
[1753203713507,0.06,203.62,203.61,14.66199385]
[1753203714274,0.06,203.62,203.58,0.7]
[1753203714475,0.06,203.62,203.59,14.66199385]
[1753203715074,0.06,203.62,203.56,16.78468397]
[1753203715303,0.06,203.62,203.59,14.66199385]
[1753203716009,0.06,203.62,203.58,14.66199385]
[1753203716203,0.06,203.62,203.57,14.66199385]
[1753203716406,0.06,203.62,203.58,14.66199385]
[1753203716606,0.06,203.62,203.57,0.7]
[1753203716918,0.06,203.62,203.61,14.66199385]
[1753203718086,0.06,203.62,203.58,14.66199385]
[1753203718491,0.06,203.62,203.59,14.66199385]
[1753203719711,0.06,203.62,203.53,16.92684554]
[1753203719712,0.06,203.62,203.61,14.66199385]
[1753203720095,0.06,203.62,203.61,15.36199385]
[1753203720416,26.0,203.59,203.48,0.7]
[1753203720581,15.40199385,203.62,203.46,88.6]
[1753203720582,14.66199385,203.53,203.5,30.0]
[1753203720779,26.0,203.55,203.46,14.66199385]
[1753203720780,50.98199385,203.52,203.46,14.66199385]
[1753203720979,62.32,203.52,203.41,0.7]
[1753203721190,4.9142464,203.49,203.41,0.7]
[1753203721389,4.91391777,203.51,203.45,14.66199385]
[1753203721612,62.32,203.52,203.48,14.66199385]
[1753203721797,67.23366296,203.52,203.45,0.7]
[1753203722104,67.23366296,203.52,203.47,14.66199385]
[1753203722310,62.32,203.52,203.47,14.66199385]
[1753203722482,35.64,203.52,203.5,14.66199385]
[1753203722682,35.64,203.52,203.51,14.66199385]
[1753203722883,35.64,203.52,203.47,14.66199385]
[1753203723182,35.64,203.52,203.35,88.63]
[1753203723183,76.30199385,203.52,203.35,88.63]
[1753203723404,14.66199385,203.48,203.42,0.7]
[1753203723585,50.32199385,203.47,203.4,14.66199385]
[1753203724006,14.66199385,203.46,203.39,15.36199385]
[1753203724489,4.91521258,203.45,203.39,15.36199385]
[1753203724891,14.66199385,203.41,203.35,14.69199385]
[1753203725091,14.66199385,203.41,203.35,0.03]
[1753203726486,14.66199385,203.37,203.35,0.03]
[1753203726696,35.64,203.36,203.35,0.03]
[1753203727400,35.62,203.4,203.35,15.39199385]
[1753203727602,35.62,203.4,203.39,14.66199385]
[1753203727783,35.62,203.43,203.39,14.66199385]
[1753203728398,35.62,203.43,203.41,14.66199385]
[1753203728721,35.62,203.46,203.42,14.66199385]
[1753203728886,16.78468397,203.53,203.45,14.66199385]
[1753203728887,14.66199385,203.53,203.45,14.66199385]
[1753203729086,26.0,203.49,203.47,14.66199385]
[1753203729306,35.62,203.52,203.47,14.66199385]
[1753203729605,35.62,203.52,203.43,0.7]
[1753203729794,36.3,203.52,203.48,14.66199385]
[1753203730712,41.21353255,203.52,203.48,14.66199385]
[1753203730920,26.0,203.49,203.43,14.66199385]
[1753203731114,35.6,203.48,203.4,88.6]
[1753203731291,15.34199385,203.47,203.41,14.66199385]
[1753203732116,0.68,203.47,203.41,14.66199385]
[1753203732312,2.246,203.54,203.46,14.66199385]
[1753203732523,14.66199385,203.52,203.46,14.66199385]
[1753203732704,15.34199385,203.51,203.44,14.66199385]
[1753203733102,40.66199385,203.5,203.44,14.66199385]
[1753203733293,35.58,203.49,203.44,14.66199385]
[1753203733494,35.58,203.49,203.45,14.66199385]
[1753203733901,35.58,203.49,203.48,14.66199385]
[1753203734202,26.0,203.52,203.48,14.69199385]
[1753203734411,35.58,203.51,203.49,14.66199385]
[1753203734802,35.58,203.51,203.5,14.66199385]
[1753203735232,35.58,203.51,203.48,88.63]
[1753203736214,35.58,203.51,203.48,103.29199385]
[1753203737105,35.58,203.51,203.5,14.66199385]
[1753203738403,4.91273136,203.56,203.5,14.66199385]
[1753203738624,35.54,203.55,203.53,14.66199385]
[1753203739902,40.45279939,203.55,203.53,14.66199385]
[1753203740101,15.35199385,203.54,203.49,88.6]
[1753203740307,14.66199385,203.52,203.49,88.6]
[1753203740508,36.19,203.51,203.48,0.03]
[1753203740738,14.66199385,203.5,203.48,0.03]
[1753203740908,15.35199385,203.5,203.48,0.03]
[1753203741239,0.69,203.49,203.48,0.03]
[1753203742028,35.5,203.51,203.48,14.69199385]
[1753203742552,35.5,203.51,203.49,14.66199385]
[1753203743530,35.48,203.53,203.5,14.66199385]
[1753203743838,61.48,203.53,203.49,88.6]
[1753203744035,40.66199385,203.5,203.49,88.6]
[1753203744220,76.81199385,203.5,203.48,0.03]
[1753203744420,76.12199385,203.5,203.48,0.03]
[1753203744623,0.69,203.49,203.48,0.03]
[1753203745403,5.6042464,203.49,203.48,0.03]
[1753203745600,20.26624025,203.49,203.48,0.03]
[1753203745824,20.40840182,203.49,203.48,0.03]
[1753203746018,26.0,203.46,203.4,88.6]
[1753203746204,35.48,203.45,203.4,88.6]
[1753203746411,35.48,203.45,203.4,103.26199385]
[1753203746823,35.48,203.45,203.41,14.66199385]
[1753203747133,35.48,203.46,203.44,14.66199385]
[1753203748024,35.48,203.46,203.45,14.66199385]
[1753203748221,35.48,203.46,203.44,14.66199385]
[1753203748428,35.48,203.46,203.45,14.66199385]
[1753203749207,55.74699832,203.46,203.42,88.6]
[1753203749509,0.69,203.45,203.42,88.6]
[1753203749724,4.91545418,203.44,203.42,88.6]
[1753203749924,35.44,203.43,203.42,88.6]
[1753203751334,45.87153572,203.43,203.39,88.6]
[1753203751632,4.91617914,203.41,203.39,88.6]
[1753203751844,35.42,203.4,203.39,88.6]
[1753203752513,35.42,203.4,203.39,98.34153572]
[1753203752714,35.42,203.4,203.39,88.6]
[1753203753838,35.42,203.4,203.36,0.03]
[1753203753839,50.76795656,203.4,203.36,0.03]
[1753203754050,2.2787,203.39,203.36,0.03]
[1753203754211,35.4,203.38,203.36,0.03]
[1753203754941,35.4,203.38,203.37,9.74153572]
[1753203755731,35.4,203.38,203.36,9.77153572]
[1753203756111,35.4,203.38,203.37,9.74153572]
[1753203756586,35.36,203.42,203.37,99.05153572]
[1753203756714,35.36,203.42,203.41,9.74153572]
[1753203756911,5.60397188,203.51,203.41,99.05153572]
[1753203757119,35.36,203.5,203.49,9.74153572]
[1753203757418,35.36,203.5,203.43,0.71]
[1753203757655,45.10153572,203.5,203.43,88.6]
[1753203757846,0.69,203.49,203.44,9.74153572]
[1753203758142,10.43153572,203.48,203.43,88.6]
[1753203758347,36.07,203.47,203.43,88.6]
[1753203758723,35.38,203.47,203.46,9.74153572]
[1753203758924,35.38,203.5,203.46,10.45153572]
[1753203759227,0.69,203.6,203.49,9.74153572]
[1753203759412,35.38,203.57,203.55,9.74153572]
[1753203759614,35.38,203.59,203.55,9.74153572]
[1753203760215,4.97213539,203.58,203.55,9.74153572]
[1753203761247,4.97213539,203.58,203.48,51.17568397]
[1753203761248,26.0,203.55,203.47,14.6866305]
[1753203761567,50.7366305,203.54,203.47,14.6866305]
[1753203761857,50.7366305,203.54,203.46,14.6866305]
[1753203761858,14.6866305,203.53,203.46,14.6866305]
[1753203762175,4.91328059,203.53,203.47,14.6866305]
[1753203762333,26.0,203.49,203.4,4.91641231]
[1753203762538,26.0,203.49,203.43,14.6866305]
[1753203762539,35.38,203.48,203.43,14.6866305]
[1753203762756,36.07,203.48,203.43,14.6866305]
[1753203763144,36.07,203.48,203.42,14.6866305]
[1753203763540,4.91472944,203.47,203.42,14.6866305]
[1753203764366,0.69,203.46,203.41,14.6866305]
[1753203764557,35.36,203.45,203.4,14.6866305]
[1753203764937,35.36,203.45,203.4,15.3966305]
[1753203765145,35.36,203.45,203.41,14.6866305]
[1753203765661,5.60545418,203.44,203.39,14.7166305]
[1753203765860,0.69,203.43,203.39,0.03]
[1753203766064,35.34,203.42,203.39,0.03]
[1753203766262,36.03,203.42,203.39,0.03]
[1753203766456,50.7166305,203.42,203.39,0.03]
[1753203766638,36.03,203.42,203.39,0.03]
[1753203767753,4.91617914,203.41,203.39,0.03]
[1753203768152,35.34,203.42,203.39,0.03]
[1753203768382,35.34,203.42,203.39,14.7166305]
[1753203768583,35.34,203.42,203.4,14.6866305]
[1753203769048,35.34,203.42,203.39,15.3966305]
[1753203769248,35.34,203.42,203.4,14.6866305]
[1753203770648,35.34,203.42,203.39,0.03]
[1753203770950,35.34,203.42,203.39,14.7166305]
[1753203771146,35.34,203.42,203.39,15.3966305]
[1753203771766,26.0,203.43,203.4,14.6866305]
[1753203771971,35.34,203.42,203.4,103.9666305]
[1753203772268,35.34,203.44,203.41,15.3666305]
[1753203772455,35.34,203.44,203.42,14.6866305]
[1753203772637,36.06,203.44,203.4,88.6]
[1753203772841,15.4066305,203.43,203.4,88.6]
[1753203773047,40.6866305,203.41,203.4,88.6]
[1753203773245,76.86879207,203.41,203.39,0.03]
[1753203773478,15.4066305,203.4,203.39,0.03]
[1753203774276,20.32305134,203.4,203.39,0.03]
[1753203774444,20.46521291,203.4,203.39,0.03]
[1753203774649,11.83488241,203.4,203.39,0.03]
[1753203774865,26.52151291,203.4,203.39,0.03]
[1753203775471,43.30619688,203.4,203.39,0.03]
[1753203776562,14.6866305,203.42,203.39,0.03]
[1753203776751,35.34,203.4,203.39,0.03]
[1753203778063,36.06,203.4,203.39,0.03]
[1753203778268,72.58989688,203.4,203.39,0.03]
[1753203779267,55.80521291,203.4,203.39,0.03]
[1753203779567,55.66305134,203.4,203.39,0.03]
[1753203779753,54.94305134,203.4,203.39,0.03]
[1753203779954,61.34,203.4,203.39,0.03]
[1753203780778,42.78468397,203.37,203.35,0.03]
[1753203780952,35.54216157,203.36,203.35,0.03]
[1753203781146,46.01511744,203.36,203.35,0.03]
[1753203781569,50.93250532,203.36,203.35,0.03]
[1753203782155,67.71718929,203.36,203.35,0.03]
[1753203783474,40.31738788,203.36,203.35,0.03]
[1753203784296,35.4,203.36,203.35,0.03]
[1753203786386,40.31738788,203.36,203.35,0.03]
[1753203786969,50.79034375,203.36,203.35,0.03]
[1753203788354,40.31738788,203.36,203.35,0.03]
[1753203788991,50.79034375,203.36,203.35,0.03]
[1753203789802,35.4,203.36,203.35,0.03]
[1753203789974,40.31738788,203.36,203.35,0.03]
[1753203790474,41.03738788,203.36,203.35,0.03]
[1753203790794,50.79034375,203.36,203.35,0.03]
[1753203791169,50.93250532,203.36,203.35,0.03]
[1753203791373,67.71718929,203.36,203.35,0.03]
[1753203792187,57.96423342,203.36,203.35,0.03]
[1753203792981,26.0,203.33,203.3,0.03]
[1753203793284,26.0,203.32,203.3,9.78295587]
[1753203793584,35.34,203.31,203.3,0.03]
[1753203793787,35.34,203.31,203.3,9.78295587]
[1753203794298,35.34,203.31,203.3,10.46295587]
[1753203795085,26.0,203.35,203.3,15.38174812]
[1753203795384,35.34,203.34,203.31,0.68]
[1753203795585,35.34,203.35,203.33,9.75295587]
[1753203795788,35.34,203.35,203.34,10.43295587]
[1753203795974,26.0,203.39,203.34,0.68]
[1753203796173,35.34,203.38,203.36,9.75295587]
[1753203796766,35.34,203.38,203.37,10.43295587]
[1753203797293,35.34,203.38,203.37,15.35010195]
[1753203797592,0.06,203.41,203.37,15.35005244]
[1753203797888,0.06,203.41,203.4,9.75295587]
[1753203798379,0.06,203.41,203.4,0.66]
[1753203798584,0.06,203.41,203.4,10.41295587]
[1753203799385,0.06,203.41,203.4,150.20406068]
[1753203799590,0.06,203.41,203.4,203.31497812]
[1753203799787,0.06,203.41,203.4,138.34281655]
[1753203800176,0.06,203.45,203.44,9.75295587]
[1753203800698,0.06,203.45,203.44,27.19763984]
[1753203801198,0.06,203.45,203.44,32.60463943]
[1753203801499,0.06,203.45,203.44,10.41295587]
[1753203801700,0.06,203.45,203.44,15.32841005]
[1753203802499,0.06,203.45,203.44,10.41295587]
[1753203802685,0.06,203.45,203.44,9.75295587]
[1753203803196,0.06,203.45,203.42,9.75295587]
[1753203803402,0.06,203.45,203.43,9.75295587]
[1753203804011,0.06,203.45,203.43,10.41295587]
[1753203804477,0.06,203.45,203.43,99.01295587]
[1753203806380,0.06,203.45,203.44,9.75295587]
[1753203806787,0.06,203.45,203.43,89.26]
[1753203806988,0.06,203.45,203.44,9.75295587]
[1753203807386,0.06,203.45,203.43,98.35295587]
[1753203809130,0.74,203.45,203.43,88.6]
[1753203809593,40.23545418,203.44,203.43,88.6]
[1753203809793,50.66841005,203.44,203.43,88.6]
[1753203810410,40.91545418,203.44,203.43,88.6]
[1753203811202,35.32,203.44,203.41,9.75295587]
[1753203811410,35.32,203.44,203.43,9.75295587]
[1753203811610,35.32,203.44,203.43,10.41295587]
[1753203811806,35.32,203.44,203.42,9.75295587]
[1753203813303,35.32,203.44,203.43,9.75295587]
[1753203813610,35.32,203.44,203.43,10.41295587]
[1753203813815,35.32,203.44,203.42,9.75295587]
[1753203814712,35.32,203.44,203.43,10.41295587]
[1753203815992,0.06,203.45,203.43,103.92865168]
[1753203816192,2.3254,203.56,203.43,103.92865168]
[1753203816193,1.6454,203.56,203.45,16.78468397]
[1753203816396,26.0,203.53,203.52,9.75295587]
[1753203816605,35.32,203.55,203.52,98.35295587]
[1753203816891,35.32,203.55,203.53,9.75295587]
[1753203817092,35.32,203.55,203.54,9.75295587]
[1753203817487,40.23291799,203.55,203.52,98.35295587]
[1753203817690,40.91291799,203.55,203.52,88.6]
[1753203817904,40.91291799,203.55,203.52,98.35295587]
[1753203818194,40.23291799,203.55,203.52,98.35295587]
[1753203820015,40.23291799,203.55,203.52,88.6]
[1753203820314,40.23291799,203.55,203.52,98.35295587]
[1753203820524,35.32,203.55,203.54,9.75295587]
[1753203820699,35.32,203.55,203.54,98.35295587]
[1753203821026,35.32,203.55,203.54,99.01295587]
[1753203822707,35.38,203.57,203.54,99.01295587]
[1753203823116,35.38,203.57,203.56,9.75295587]
[1753203823319,26.0,203.54,203.47,88.6]
[1753203823527,35.32,203.53,203.49,9.75295587]
[1753203823697,35.32,203.53,203.47,89.26]
[1753203823895,35.32,203.53,203.49,9.75295587]
[1753203824097,35.32,203.53,203.5,10.41295587]
[1753203824324,35.32,203.53,203.51,10.41295587]
[1753203824811,35.32,203.53,203.47,88.6]
[1753203824812,35.32,203.53,203.5,9.75295587]
[1753203824994,0.68,203.52,203.47,98.35295587]
[1753203826018,40.29341278,203.53,203.49,9.75295587]
[1753203826796,40.97341278,203.53,203.48,9.75295587]
[1753203826996,0.68,203.52,203.47,98.35295587]
[1753203827208,0.68,203.51,203.47,98.35295587]
[1753203827421,35.3,203.5,203.47,98.35295587]
[1753203828216,35.3,203.5,203.47,88.6]
[1753203828420,40.21405272,203.5,203.47,98.35295587]
[1753203829233,40.88405272,203.5,203.47,88.6]
[1753203829533,40.88405272,203.5,203.42,88.6]
[1753203829534,9.75295587,203.48,203.42,88.6]
[1753203829724,45.05295587,203.47,203.42,88.6]
[1753203830036,0.67,203.46,203.42,88.6]
[1753203830509,4.91521258,203.45,203.42,88.6]
[1753203830710,35.3,203.44,203.42,88.6]
[1753203831107,35.3,203.44,203.41,9.78295587]
[1753203831317,0.67,203.43,203.41,0.03]
[1753203831720,0.67,203.42,203.41,0.03]
[1753203832602,15.33889333,203.42,203.41,0.03]
[1753203833028,5.58593746,203.42,203.41,0.03]
[1753203833434,15.33889333,203.42,203.41,0.03]
[1753203834028,5.58593746,203.42,203.41,0.03]
[1753203834223,40.21567448,203.44,203.41,0.03]
[1753203834417,9.75295587,203.43,203.41,0.03]
[1753203834620,5.58593746,203.42,203.41,0.03]
[1753203835027,17.1345549,203.42,203.41,0.03]
[1753203835324,26.0,203.39,203.36,0.03]
[1753203835536,9.75295587,203.37,203.36,0.03]
[1753203836028,31.20347395,203.37,203.36,0.03]
[1753203836339,27.34980141,203.37,203.36,0.03]
[1753203836739,36.2606466,203.37,203.36,1e-08]
[1753203836914,16.92684554,203.36,203.35,1e-08]
[1753203837122,27.34980141,203.36,203.35,1e-08]
[1753203837625,62.66980141,203.36,203.35,1e-08]
[1753203838727,67.58718929,203.36,203.35,1e-08]
[1753203839523,5.58738788,203.36,203.35,1e-08]
[1753203839725,50.66034375,203.36,203.35,1e-08]
[1753203840949,40.90738788,203.36,203.35,1e-08]
[1753203841136,50.66034375,203.36,203.35,1e-08]
[1753203842537,67.58718929,203.36,203.35,1e-08]
[1753203843332,57.83423342,203.36,203.35,1e-08]
[1753203843533,67.58718929,203.36,203.35,1e-08]
[1753203844428,57.83423342,203.36,203.35,1e-08]
[1753203844628,67.58718929,203.36,203.35,1e-08]
[1753203845743,67.58718929,203.36,203.3,0.03]
[1753203845920,37.53861744,203.33,203.32,1e-08]
[1753203846122,72.85861744,203.33,203.32,1e-08]
[1753203846338,80.13141744,203.33,203.32,1e-08]
[1753203847342,92.08125895,203.33,203.32,1e-08]
[1753203847539,101.83421482,203.33,203.32,1e-08]
[1753203848045,0.14216157,203.32,203.3,1e-08]
[1753203848222,61.99980141,203.31,203.3,1e-08]
[1753203848422,42.78468397,203.27,203.26,1e-08]
[1753203848623,87.99980141,203.27,203.26,1e-08]
[1753203848836,88.66980141,203.27,203.26,1e-08]
[1753203849954,88.66980141,203.27,203.24,1e-08]
[1753203849955,0.14216157,203.26,203.24,1e-08]
[1753203850156,0.14216157,203.26,203.16,0.72]
[1753203850157,42.78468397,203.21,203.15,0.1]
[1753203850453,9.75295587,203.18,203.15,0.1]
[1753203850643,35.32,203.17,203.15,0.1]
[1753203850946,9.75295587,203.16,203.15,0.1]
[1753203851147,0.81216157,203.16,203.15,0.1]
[1753203851464,0.14216157,203.2,203.15,0.1]
[1753203851624,0.81216157,203.2,203.15,0.1]
[1753203851823,6.6612,203.26,203.15,0.1]
[1753203851824,26.0,203.19,203.17,9.75295587]
[1753203852061,9.75295587,203.23,203.18,0.72]
[1753203852226,9.75295587,203.23,203.15,0.1]
[1753203852227,9.75295587,203.21,203.15,0.82]
[1753203852426,35.32,203.2,203.15,0.82]
[1753203852729,35.32,203.19,203.16,0.72]
[1753203853248,35.32,203.19,203.17,0.72]
[1753203853454,35.32,203.19,203.18,0.72]
[1753203853823,2.2553,203.28,203.18,15.39470013]
[1753203854045,45.07295587,203.27,203.21,9.75295587]
[1753203854361,26.0,203.24,203.19,10.47295587]
[1753203854669,9.75295587,203.22,203.18,88.6]
[1753203854827,35.32,203.21,203.16,0.72]
[1753203855433,35.32,203.21,203.17,0.72]
[1753203855836,4.92125984,203.2,203.15,10.57295587]
[1753203856035,5.5883553,203.32,203.19,39.24295587]
[1753203856256,6.4633,203.36,203.28,9.75295587]
[1753203856257,3.23373496,203.35,203.28,9.75295587]
[1753203856458,2.56373496,203.35,203.32,9.75295587]
[1753203856661,2.56373496,203.35,203.34,9.75295587]
[1753203856842,2.56373496,203.35,203.34,10.47295587]
[1753203856843,1.12373496,203.35,203.34,10.47295587]
[1753203857045,1.12373496,203.35,203.34,56.74763984]
[1753203857360,35.32,203.49,203.46,9.75295587]
[1753203857566,35.32,203.49,203.48,9.75295587]
[1753203857727,35.32,203.49,203.47,9.75295587]
[1753203857941,40.23426072,203.49,203.47,9.75295587]